{"text_format":"1","workbook":"xlsx","n_sheets":12,"sheets":["يناير","فبراير","مارس","إبريل","مايو","يونيو","يوليو","أغسطس","سبتمبر","أكتوبر","نوفمبر","ديسمبر"],"not_rendered":{"charts":0,"images":0,"macros":1,"external_links":0,"defined_names":24,"comments":0,"pivot_tables":0},"unopened":[],"bounds":{"document_bytes":16777216,"sheet_cells":100000,"rows_first":2000,"rows_last":500,"rows_between":2000,"halvings":0,"cell_chars":16384,"cell_head_chars":4096},"cells_cut":0,"cells_raw":0,"read":"whole","date_system":"1900"}

{"sheet":"يناير","index":0,"n_rows":100,"n_cols":16,"rows_kept":100,"cut":false,"hidden":false,"merged":[[2,11,2,12],[0,0,1,6]]}
["أنشطة شهر يناير 2021",null,null,null,null,null,null," "]
[]
["اليوم","التاريخ","النشـــــــــــــــــــــــــاط","المنظم","من","إلى","القاعة","التكرار",null,null,null,"بيان بعدد الأنشطة شهريًا"]
[{"$f":"IF(B4=\"\",\"\",TEXT(B4,\"dddd\"))","v":"الإثنين"},"2021-11-01","الشركة القابضة للاستثمار في المجالات الثقافية والسينمائية","أمانة المؤتمرات","12م","2م","الفنون",{"$f":"COUNTIFS(G:G,G4,F:F,F4,E:E,E4,B:B,B4)","v":1},null,null,null,"القاعة","عدد الأنشطة",null,null,"اجتماع"]
[{"$f":"IF(B5=\"\",\"\",TEXT(B5,\"dddd\"))","v":"الأربعاء"},"2021-11-10",null,"علاقات ثقافية","6م","8م","القاعة العامة",{"$f":"COUNTIFS(G:G,G5,F:F,F5,E:E,E5,B:B,B5)","v":1},null,null,null,"الندوات",{"$f":"IFERROR(COUNTIF($G$4:G100,L5),\"\")","v":0}]
[{"$f":"IF(B6=\"\",\"\",TEXT(B6,\"dddd\"))","v":"الخميس"},"2021-11-18","بور سعيد للثقافة (المعالم الأثرية لمدينة بور سعيد وتأثيرها على التنمية في مصر)","علاقات ثقافية","5م","7م","مقرري اللجان",1,null,null,null,"مقرري اللجان",{"$f":"IFERROR(COUNTIF($G$4:G101,L6),\"\")","v":1}]
[{"$f":"IF(B7=\"\",\"\",TEXT(B7,\"dddd\"))","v":"السبت"},"2021-11-20",null,null,null,null,"اوفيسنا",0,null,null,null,"الآداب",{"$f":"IFERROR(COUNTIF($G$4:G102,L7),\"\")","v":0}]
[{"$f":"IF(B8=\"\",\"\",TEXT(B8,\"dddd\"))","v":""},null,null,null,null,null,"القاعة العامة",0,null,null,null,"العلوم الاجتماعية",{"$f":"IFERROR(COUNTIF($G$4:G103,L8),\"\")","v":0}]
[{"$f":"IF(B9=\"\",\"\",TEXT(B9,\"dddd\"))","v":""},null,null,null,null,null,null,0,null,null,null,"القاعة العامة",{"$f":"IFERROR(COUNTIF($G$4:G104,L9),\"\")","v":2}]
[{"$f":"IF(B10=\"\",\"\",TEXT(B10,\"dddd\"))","v":""},null,null,null,null,null,null,0,null,null,null,"المؤتمرات",{"$f":"IFERROR(COUNTIF($G$4:G105,L10),\"\")","v":0}]
[{"$f":"IF(B11=\"\",\"\",TEXT(B11,\"dddd\"))","v":""},null,null,null,null,null,null,0,null,null,null,"المجلس",{"$f":"IFERROR(COUNTIF($G$4:G106,L11),\"\")","v":0}]
[{"$f":"IF(B12=\"\",\"\",TEXT(B12,\"dddd\"))","v":""},null,null,null,null,null,null,0,null,null,null,"الفنون",{"$f":"IFERROR(COUNTIF($G$4:G107,L12),\"\")","v":1}]
[{"$f":"IF(B13=\"\",\"\",TEXT(B13,\"dddd\"))","v":""},null,null,null,null,null,null,0,null,"10ص",null,"كل القاعات",{"$f":"IFERROR(COUNTIF($G$4:G108,L13),\"\")","v":0}]
[{"$f":"IF(B14=\"\",\"\",TEXT(B14,\"dddd\"))","v":""},null,null,null,null,null,null,0,null,"11ص",null,"مكان اخر",{"$f":"COUNTA($G$4:G109)-SUM($M$5:$M$13)","v":1}]
[{"$f":"IF(B15=\"\",\"\",TEXT(B15,\"dddd\"))","v":""},null,null,null,null,null,null,0,null,"12م",null,"إجمالى عدد الأنشطة",{"$f":"SUM(M5:M14)","v":5}]
[{"$f":"IF(B16=\"\",\"\",TEXT(B16,\"dddd\"))","v":""},null,null,null,null,null,null,0,null,"1م",null,"عدد الاجتماعات ",{"$f":"IFERROR(COUNTIF($C$4:$C$112,P6),\"\")","v":0}]
[{"$f":"IF(B17=\"\",\"\",TEXT(B17,\"dddd\"))","v":""},null,null,null,null,null,null,0,null,"2م"]
[{"$f":"IF(B18=\"\",\"\",TEXT(B18,\"dddd\"))","v":""},null,null,null,null,null,null,0,null,"3م"]
[{"$f":"IF(B19=\"\",\"\",TEXT(B19,\"dddd\"))","v":""},null,null,null,null,null,null,0,null,"4م"]
[{"$f":"IF(B20=\"\",\"\",TEXT(B20,\"dddd\"))","v":""},null,null,null,null,null,null,0,null,"5م"]
[{"$f":"IF(B21=\"\",\"\",TEXT(B21,\"dddd\"))","v":""},null,null,null,null,null,null,0,null,"6م"]
[{"$f":"IF(B22=\"\",\"\",TEXT(B22,\"dddd\"))","v":""},null,null,null,null,null,null,0,null,"7م"]
[{"$f":"IF(B23=\"\",\"\",TEXT(B23,\"dddd\"))","v":""},null,null,null,null,null,null,0,null,"8م"]
[{"$f":"IF(B24=\"\",\"\",TEXT(B24,\"dddd\"))","v":""},null,null,null,null,null,null,0,null,"9م"]
[{"$f":"IF(B25=\"\",\"\",TEXT(B25,\"dddd\"))","v":""},null,null,null,null,null,null,0]
[{"$f":"IF(B26=\"\",\"\",TEXT(B26,\"dddd\"))","v":""},null,null,null,null,null,null,0]
[{"$f":"IF(B27=\"\",\"\",TEXT(B27,\"dddd\"))","v":""},null,null,null,null,null,null,0]
[{"$f":"IF(B28=\"\",\"\",TEXT(B28,\"dddd\"))","v":""},null,null,null,null,null,null,0]
[{"$f":"IF(B29=\"\",\"\",TEXT(B29,\"dddd\"))","v":""},null,null,null,null,null,null,0]
[{"$f":"IF(B30=\"\",\"\",TEXT(B30,\"dddd\"))","v":""},null,null,null,null,null,null,0]
[{"$f":"IF(B31=\"\",\"\",TEXT(B31,\"dddd\"))","v":""},null,null,null,null,null,null,0]
[{"$f":"IF(B32=\"\",\"\",TEXT(B32,\"dddd\"))","v":""},null,null,null,null,null,null,0]
[{"$f":"IF(B33=\"\",\"\",TEXT(B33,\"dddd\"))","v":""},null,null,null,null,null,null,0]
[{"$f":"IF(B34=\"\",\"\",TEXT(B34,\"dddd\"))","v":""},null,null,null,null,null,null,0]
[{"$f":"IF(B35=\"\",\"\",TEXT(B35,\"dddd\"))","v":""},null,null,null,null,null,null,0]
[{"$f":"IF(B36=\"\",\"\",TEXT(B36,\"dddd\"))","v":""},null,null,null,null,null,null,0]
[{"$f":"IF(B37=\"\",\"\",TEXT(B37,\"dddd\"))","v":""},null,null,null,null,null,null,0]
[{"$f":"IF(B38=\"\",\"\",TEXT(B38,\"dddd\"))","v":""},null,null,null,null,null,null,0]
[{"$f":"IF(B39=\"\",\"\",TEXT(B39,\"dddd\"))","v":""},null,null,null,null,null,null,0,null,"الندوات"]
[{"$f":"IF(B40=\"\",\"\",TEXT(B40,\"dddd\"))","v":""},null,null,null,null,null,null,0,null,"مقرري اللجان"]
[{"$f":"IF(B41=\"\",\"\",TEXT(B41,\"dddd\"))","v":""},null,null,null,null,null,null,0,null,"الآداب"]
[{"$f":"IF(B42=\"\",\"\",TEXT(B42,\"dddd\"))","v":""},null,null,null,null,null,null,0,null,"العلوم الاجتماعية"]
[{"$f":"IF(B43=\"\",\"\",TEXT(B43,\"dddd\"))","v":""},null,null,null,null,null,null,0,null,"القاعة العامة"]
[{"$f":"IF(B44=\"\",\"\",TEXT(B44,\"dddd\"))","v":""},null,null,null,null,null,null,0,null,"المؤتمرات"]
[{"$f":"IF(B45=\"\",\"\",TEXT(B45,\"dddd\"))","v":""},null,null,null,null,null,null,0,null,"المجلس"]
[{"$f":"IF(B46=\"\",\"\",TEXT(B46,\"dddd\"))","v":""},null,null,null,null,null,null,0,null,"الفنون"]
[{"$f":"IF(B47=\"\",\"\",TEXT(B47,\"dddd\"))","v":""},null,null,null,null,null,null,0,null,"كل القاعات"]
[{"$f":"IF(B48=\"\",\"\",TEXT(B48,\"dddd\"))","v":""},null,null,null,null,null,null,0]
[{"$f":"IF(B49=\"\",\"\",TEXT(B49,\"dddd\"))","v":""},null,null,null,null,null,null,0]
[{"$f":"IF(B50=\"\",\"\",TEXT(B50,\"dddd\"))","v":""},null,null,null,null,null,null,0]
[{"$f":"IF(B51=\"\",\"\",TEXT(B51,\"dddd\"))","v":""},null,null,null,null,null,null,0]
[{"$f":"IF(B52=\"\",\"\",TEXT(B52,\"dddd\"))","v":""},null,null,null,null,null,null,0]
[{"$f":"IF(B53=\"\",\"\",TEXT(B53,\"dddd\"))","v":""},null,null,null,null,null,null,0]
[{"$f":"IF(B54=\"\",\"\",TEXT(B54,\"dddd\"))","v":""},null,null,null,null,null,null,0]
[{"$f":"IF(B55=\"\",\"\",TEXT(B55,\"dddd\"))","v":""},null,null,null,null,null,null,0]
[{"$f":"IF(B56=\"\",\"\",TEXT(B56,\"dddd\"))","v":""},null,null,null,null,null,null,0]
[{"$f":"IF(B57=\"\",\"\",TEXT(B57,\"dddd\"))","v":""},null,null,null,null,null,null,0]
[{"$f":"IF(B58=\"\",\"\",TEXT(B58,\"dddd\"))","v":""},null,null,null,null,null,null,0]
[{"$f":"IF(B59=\"\",\"\",TEXT(B59,\"dddd\"))","v":""},null,null,null,null,null,null,0]
[{"$f":"IF(B60=\"\",\"\",TEXT(B60,\"dddd\"))","v":""},null,null,null,null,null,null,0]
[{"$f":"IF(B61=\"\",\"\",TEXT(B61,\"dddd\"))","v":""},null,null,null,null,null,null,0]
[{"$f":"IF(B62=\"\",\"\",TEXT(B62,\"dddd\"))","v":""},null,null,null,null,null,null,0]
[{"$f":"IF(B63=\"\",\"\",TEXT(B63,\"dddd\"))","v":""},null,null,null,null,null,null,0]
[{"$f":"IF(B64=\"\",\"\",TEXT(B64,\"dddd\"))","v":""},null,null,null,null,null,null,0]
[{"$f":"IF(B65=\"\",\"\",TEXT(B65,\"dddd\"))","v":""},null,null,null,null,null,null,0]
[{"$f":"IF(B66=\"\",\"\",TEXT(B66,\"dddd\"))","v":""},null,null,null,null,null,null,0]
[{"$f":"IF(B67=\"\",\"\",TEXT(B67,\"dddd\"))","v":""},null,null,null,null,null,null,0]
[{"$f":"IF(B68=\"\",\"\",TEXT(B68,\"dddd\"))","v":""},null,null,null,null,null,null,0]
[{"$f":"IF(B69=\"\",\"\",TEXT(B69,\"dddd\"))","v":""},null,null,null,null,null,null,{"$f":"COUNTIFS(G:G,G69,F:F,F69,E:E,E69,B:B,B69)","v":0}]
[{"$f":"IF(B70=\"\",\"\",TEXT(B70,\"dddd\"))","v":""},null,null,null,null,null,null,0]
[{"$f":"IF(B71=\"\",\"\",TEXT(B71,\"dddd\"))","v":""},null,null,null,null,null,null,0]
[{"$f":"IF(B72=\"\",\"\",TEXT(B72,\"dddd\"))","v":""},null,null,null,null,null,null,0]
[{"$f":"IF(B73=\"\",\"\",TEXT(B73,\"dddd\"))","v":""},null,null,null,null,null,null,0]
[{"$f":"IF(B74=\"\",\"\",TEXT(B74,\"dddd\"))","v":""},null,null,null,null,null,null,0]
[{"$f":"IF(B75=\"\",\"\",TEXT(B75,\"dddd\"))","v":""},null,null,null,null,null,null,0]
[{"$f":"IF(B76=\"\",\"\",TEXT(B76,\"dddd\"))","v":""},null,null,null,null,null,null,0]
[{"$f":"IF(B77=\"\",\"\",TEXT(B77,\"dddd\"))","v":""},null,null,null,null,null,null,0]
[{"$f":"IF(B78=\"\",\"\",TEXT(B78,\"dddd\"))","v":""},null,null,null,null,null,null,0]
[{"$f":"IF(B79=\"\",\"\",TEXT(B79,\"dddd\"))","v":""},null,null,null,null,null,null,0]
[{"$f":"IF(B80=\"\",\"\",TEXT(B80,\"dddd\"))","v":""},null,null,null,null,null,null,0]
[{"$f":"IF(B81=\"\",\"\",TEXT(B81,\"dddd\"))","v":""},null,null,null,null,null,null,0]
[{"$f":"IF(B82=\"\",\"\",TEXT(B82,\"dddd\"))","v":""},null,null,null,null,null,null,0]
[{"$f":"IF(B83=\"\",\"\",TEXT(B83,\"dddd\"))","v":""},null,null,null,null,null,null,0]
[{"$f":"IF(B84=\"\",\"\",TEXT(B84,\"dddd\"))","v":""},null,null,null,null,null,null,0]
[{"$f":"IF(B85=\"\",\"\",TEXT(B85,\"dddd\"))","v":""},null,null,null,null,null,null,0]
[{"$f":"IF(B86=\"\",\"\",TEXT(B86,\"dddd\"))","v":""},null,null,null,null,null,null,0]
[{"$f":"IF(B87=\"\",\"\",TEXT(B87,\"dddd\"))","v":""},null,null,null,null,null,null,0]
[{"$f":"IF(B88=\"\",\"\",TEXT(B88,\"dddd\"))","v":""},null,null,null,null,null,null,0]
[{"$f":"IF(B89=\"\",\"\",TEXT(B89,\"dddd\"))","v":""},null,null,null,null,null,null,0]
[{"$f":"IF(B90=\"\",\"\",TEXT(B90,\"dddd\"))","v":""},null,null,null,null,null,null,0]
[{"$f":"IF(B91=\"\",\"\",TEXT(B91,\"dddd\"))","v":""},null,null,null,null,null,null,0]
[{"$f":"IF(B92=\"\",\"\",TEXT(B92,\"dddd\"))","v":""},null,null,null,null,null,null,0]
[{"$f":"IF(B93=\"\",\"\",TEXT(B93,\"dddd\"))","v":""},null,null,null,null,null,null,0]
[{"$f":"IF(B94=\"\",\"\",TEXT(B94,\"dddd\"))","v":""},null,null,null,null,null,null,0]
[{"$f":"IF(B95=\"\",\"\",TEXT(B95,\"dddd\"))","v":""},null,null,null,null,null,null,0]
[{"$f":"IF(B96=\"\",\"\",TEXT(B96,\"dddd\"))","v":""},null,null,null,null,null,null,0]
[{"$f":"IF(B97=\"\",\"\",TEXT(B97,\"dddd\"))","v":""},null,null,null,null,null,null,0]
[{"$f":"IF(B98=\"\",\"\",TEXT(B98,\"dddd\"))","v":""},null,null,null,null,null,null,0]
[{"$f":"IF(B99=\"\",\"\",TEXT(B99,\"dddd\"))","v":""},null,null,null,null,null,null,0]
[{"$f":"IF(B100=\"\",\"\",TEXT(B100,\"dddd\"))","v":""},null,null,null,null,null,null,0]

{"sheet":"فبراير","index":1,"n_rows":100,"n_cols":16,"rows_kept":100,"cut":false,"hidden":false,"merged":[[0,0,1,6],[2,11,2,12]]}
["أنشطة شهر فبراير 2021",null,null,null,null,null,null," "]
[]
["اليوم","التاريخ","النشـــــــــــــــــــــــــاط","المنظم","من","إلى","القاعة","التكرار",null,null,null,"بيان بعدد الأنشطة شهريًا"]
[{"$f":"IF(B4=\"\",\"\",TEXT(B4,\"dddd\"))","v":""},null,null,null,null,null,null,{"$f":"COUNTIFS(G:G,G4,F:F,F4,E:E,E4,B:B,B4)","v":0},null,null,null,"القاعة","عدد الأنشطة",null,null,"اجتماع"]
["",null,null,null,null,null,null,0,null,null,null,"الندوات",{"$f":"IFERROR(COUNTIF($G$4:G100,L5),\"\")","v":0}]
["",null,null,null,null,null,null,0,null,null,null,"مقرري اللجان",{"$f":"IFERROR(COUNTIF($G$4:G101,L6),\"\")","v":0}]
["",null,null,null,null,null,null,0,null,null,null,"الآداب",{"$f":"IFERROR(COUNTIF($G$4:G102,L7),\"\")","v":0}]
["",null,null,null,null,null,null,0,null,null,null,"العلوم الاجتماعية",{"$f":"IFERROR(COUNTIF($G$4:G103,L8),\"\")","v":0}]
["",null,null,null,null,null,null,0,null,null,null,"القاعة العامة",{"$f":"IFERROR(COUNTIF($G$4:G104,L9),\"\")","v":0}]
["",null,null,null,null,null,null,0,null,null,null,"المؤتمرات",{"$f":"IFERROR(COUNTIF($G$4:G105,L10),\"\")","v":0}]
["",null,null,null,null,null,null,0,null,null,null,"المجلس",{"$f":"IFERROR(COUNTIF($G$4:G106,L11),\"\")","v":0}]
["",null,null,null,null,null,null,0,null,null,null,"الفنون",{"$f":"IFERROR(COUNTIF($G$4:G107,L12),\"\")","v":0}]
["",null,null,null,null,null,null,0,null,"10ص",null,"كل القاعات",{"$f":"IFERROR(COUNTIF($G$4:G108,L13),\"\")","v":0}]
["",null,null,null,null,null,null,0,null,"11ص",null,"إجمالى عدد الأنشطة",{"$f":"SUM(M5:M13)","v":0}]
["",null,null,null,null,null,null,0,null,"12م",null,"عدد الاجتماعات ",{"$f":"IFERROR(COUNTIF($C$4:C112,P6),\"\")","v":0}]
["",null,null,null,null,null,null,0,null,"1م"]
["",null,null,null,null,null,null,0,null,"2م"]
["",null,null,null,null,null,null,0,null,"3م"]
["",null,null,null,null,null,null,0,null,"4م"]
["",null,null,null,null,null,null,0,null,"5م"]
["",null,null,null,null,null,null,0,null,"6م"]
["",null,null,null,null,null,null,0,null,"7م"]
["",null,null,null,null,null,null,0,null,"8م"]
["",null,null,null,null,null,null,0,null,"9م"]
["",null,null,null,null,null,null,0]
["",null,null,null,null,null,null,0]
["",null,null,null,null,null,null,0]
["",null,null,null,null,null,null,0]
["",null,null,null,null,null,null,0]
["",null,null,null,null,null,null,0]
["",null,null,null,null,null,null,0]
["",null,null,null,null,null,null,0]
["",null,null,null,null,null,null,0]
["",null,null,null,null,null,null,0]
["",null,null,null,null,null,null,0]
["",null,null,null,null,null,null,0]
["",null,null,null,null,null,null,0]
["",null,null,null,null,null,null,0]
["",null,null,null,null,null,null,0,null,"الندوات"]
["",null,null,null,null,null,null,0,null,"مقرري اللجان"]
["",null,null,null,null,null,null,0,null,"الآداب"]
["",null,null,null,null,null,null,0,null,"العلوم الاجتماعية"]
["",null,null,null,null,null,null,0,null,"القاعة العامة"]
["",null,null,null,null,null,null,0,null,"المؤتمرات"]
["",null,null,null,null,null,null,0,null,"المجلس"]
["",null,null,null,null,null,null,0,null,"الفنون"]
["",null,null,null,null,null,null,0,null,"كل القاعات"]
["",null,null,null,null,null,null,0]
["",null,null,null,null,null,null,0]
["",null,null,null,null,null,null,0]
["",null,null,null,null,null,null,0]
["",null,null,null,null,null,null,0]
["",null,null,null,null,null,null,0]
["",null,null,null,null,null,null,0]
["",null,null,null,null,null,null,0]
["",null,null,null,null,null,null,0]
["",null,null,null,null,null,null,0]
["",null,null,null,null,null,null,0]
["",null,null,null,null,null,null,0]
["",null,null,null,null,null,null,0]
["",null,null,null,null,null,null,0]
["",null,null,null,null,null,null,0]
["",null,null,null,null,null,null,0]
["",null,null,null,null,null,null,0]
["",null,null,null,null,null,null,0]
["",null,null,null,null,null,null,0]
["",null,null,null,null,null,null,0]
[{"$f":"IF(B68=\"\",\"\",TEXT(B68,\"dddd\"))","v":""},null,null,null,null,null,null,{"$f":"COUNTIFS(G:G,G68,F:F,F68,E:E,E68,B:B,B68)","v":0}]
["",null,null,null,null,null,null,0]
["",null,null,null,null,null,null,0]
["",null,null,null,null,null,null,0]
["",null,null,null,null,null,null,0]
["",null,null,null,null,null,null,0]
["",null,null,null,null,null,null,0]
["",null,null,null,null,null,null,0]
["",null,null,null,null,null,null,0]
["",null,null,null,null,null,null,0]
["",null,null,null,null,null,null,0]
["",null,null,null,null,null,null,0]
["",null,null,null,null,null,null,0]
["",null,null,null,null,null,null,0]
["",null,null,null,null,null,null,0]
["",null,null,null,null,null,null,0]
["",null,null,null,null,null,null,0]
["",null,null,null,null,null,null,0]
["",null,null,null,null,null,null,0]
["",null,null,null,null,null,null,0]
["",null,null,null,null,null,null,0]
["",null,null,null,null,null,null,0]
["",null,null,null,null,null,null,0]
["",null,null,null,null,null,null,0]
["",null,null,null,null,null,null,0]
["",null,null,null,null,null,null,0]
["",null,null,null,null,null,null,0]
["",null,null,null,null,null,null,0]
["",null,null,null,null,null,null,0]
["",null,null,null,null,null,null,0]
["",null,null,null,null,null,null,0]
["",null,null,null,null,null,null,0]
["",null,null,null,null,null,null,0]

{"sheet":"مارس","index":2,"n_rows":100,"n_cols":16,"rows_kept":100,"cut":false,"hidden":false,"merged":[[0,0,1,6],[2,11,2,12]]}
["أنشطة شهر مارس 2021",null,null,null,null,null,null," "]
[]
["اليوم","التاريخ","النشـــــــــــــــــــــــــاط","المنظم","من","إلى","القاعة","التكرار",null,null,null,"بيان بعدد الأنشطة شهريًا"]
[{"$f":"IF(B4=\"\",\"\",TEXT(B4,\"dddd\"))","v":""},null,null,null,null,null,null,{"$f":"COUNTIFS(G:G,G4,F:F,F4,E:E,E4,B:B,B4)","v":0},null,null,null,"القاعة","عدد الأنشطة",null,null,"اجتماع"]
["",null,null,null,null,null,null,0,null,null,null,"الندوات",{"$f":"IFERROR(COUNTIF($G$4:G100,L5),\"\")","v":0}]
["",null,null,null,null,null,null,0,null,null,null,"مقرري اللجان",{"$f":"IFERROR(COUNTIF($G$4:G101,L6),\"\")","v":0}]
["",null,null,null,null,null,null,0,null,null,null,"الآداب",{"$f":"IFERROR(COUNTIF($G$4:G102,L7),\"\")","v":0}]
["",null,null,null,null,null,null,0,null,null,null,"العلوم الاجتماعية",{"$f":"IFERROR(COUNTIF($G$4:G103,L8),\"\")","v":0}]
["",null,null,null,null,null,null,0,null,null,null,"القاعة العامة",{"$f":"IFERROR(COUNTIF($G$4:G104,L9),\"\")","v":0}]
["",null,null,null,null,null,null,0,null,null,null,"المؤتمرات",{"$f":"IFERROR(COUNTIF($G$4:G105,L10),\"\")","v":0}]
["",null,null,null,null,null,null,0,null,null,null,"المجلس",{"$f":"IFERROR(COUNTIF($G$4:G106,L11),\"\")","v":0}]
["",null,null,null,null,null,null,0,null,null,null,"الفنون",{"$f":"IFERROR(COUNTIF($G$4:G107,L12),\"\")","v":0}]
["",null,null,null,null,null,null,0,null,"10ص",null,"كل القاعات",{"$f":"IFERROR(COUNTIF($G$4:G108,L13),\"\")","v":0}]
["",null,null,null,null,null,null,0,null,"11ص",null,"إجمالى عدد الأنشطة",{"$f":"SUM(M5:M13)","v":0}]
["",null,null,null,null,null,null,0,null,"12م",null,"عدد الاجتماعات ",{"$f":"IFERROR(COUNTIF($C$4:C112,P6),\"\")","v":0}]
["",null,null,null,null,null,null,0,null,"1م"]
["",null,null,null,null,null,null,0,null,"2م"]
["",null,null,null,null,null,null,0,null,"3م"]
["",null,null,null,null,null,null,0,null,"4م"]
["",null,null,null,null,null,null,0,null,"5م"]
["",null,null,null,null,null,null,0,null,"6م"]
["",null,null,null,null,null,null,0,null,"7م"]
["",null,null,null,null,null,null,0,null,"8م"]
["",null,null,null,null,null,null,0,null,"9م"]
["",null,null,null,null,null,null,0]
["",null,null,null,null,null,null,0]
["",null,null,null,null,null,null,0]
["",null,null,null,null,null,null,0]
["",null,null,null,null,null,null,0]
["",null,null,null,null,null,null,0]
["",null,null,null,null,null,null,0]
["",null,null,null,null,null,null,0]
["",null,null,null,null,null,null,0]
["",null,null,null,null,null,null,0]
["",null,null,null,null,null,null,0]
["",null,null,null,null,null,null,0]
["",null,null,null,null,null,null,0]
["",null,null,null,null,null,null,0]
["",null,null,null,null,null,null,0,null,"الندوات"]
["",null,null,null,null,null,null,0,null,"مقرري اللجان"]
["",null,null,null,null,null,null,0,null,"الآداب"]
["",null,null,null,null,null,null,0,null,"العلوم الاجتماعية"]
["",null,null,null,null,null,null,0,null,"القاعة العامة"]
["",null,null,null,null,null,null,0,null,"المؤتمرات"]
["",null,null,null,null,null,null,0,null,"المجلس"]
["",null,null,null,null,null,null,0,null,"الفنون"]
["",null,null,null,null,null,null,0,null,"كل القاعات"]
["",null,null,null,null,null,null,0]
["",null,null,null,null,null,null,0]
["",null,null,null,null,null,null,0]
["",null,null,null,null,null,null,0]
["",null,null,null,null,null,null,0]
["",null,null,null,null,null,null,0]
["",null,null,null,null,null,null,0]
["",null,null,null,null,null,null,0]
["",null,null,null,null,null,null,0]
["",null,null,null,null,null,null,0]
["",null,null,null,null,null,null,0]
["",null,null,null,null,null,null,0]
["",null,null,null,null,null,null,0]
["",null,null,null,null,null,null,0]
["",null,null,null,null,null,null,0]
["",null,null,null,null,null,null,0]
["",null,null,null,null,null,null,0]
["",null,null,null,null,null,null,0]
["",null,null,null,null,null,null,0]
["",null,null,null,null,null,null,0]
[{"$f":"IF(B68=\"\",\"\",TEXT(B68,\"dddd\"))","v":""},null,null,null,null,null,null,{"$f":"COUNTIFS(G:G,G68,F:F,F68,E:E,E68,B:B,B68)","v":0}]
["",null,null,null,null,null,null,0]
["",null,null,null,null,null,null,0]
["",null,null,null,null,null,null,0]
["",null,null,null,null,null,null,0]
["",null,null,null,null,null,null,0]
["",null,null,null,null,null,null,0]
["",null,null,null,null,null,null,0]
["",null,null,null,null,null,null,0]
["",null,null,null,null,null,null,0]
["",null,null,null,null,null,null,0]
["",null,null,null,null,null,null,0]
["",null,null,null,null,null,null,0]
["",null,null,null,null,null,null,0]
["",null,null,null,null,null,null,0]
["",null,null,null,null,null,null,0]
["",null,null,null,null,null,null,0]
["",null,null,null,null,null,null,0]
["",null,null,null,null,null,null,0]
["",null,null,null,null,null,null,0]
["",null,null,null,null,null,null,0]
["",null,null,null,null,null,null,0]
["",null,null,null,null,null,null,0]
["",null,null,null,null,null,null,0]
["",null,null,null,null,null,null,0]
["",null,null,null,null,null,null,0]
["",null,null,null,null,null,null,0]
["",null,null,null,null,null,null,0]
["",null,null,null,null,null,null,0]
["",null,null,null,null,null,null,0]
["",null,null,null,null,null,null,0]
["",null,null,null,null,null,null,0]
["",null,null,null,null,null,null,0]

{"sheet":"إبريل","index":3,"n_rows":100,"n_cols":16,"rows_kept":100,"cut":false,"hidden":false,"merged":[[0,0,1,6],[2,11,2,12]]}
["أنشطة شهر إبريل 2021",null,null,null,null,null,null," "]
[]
["اليوم","التاريخ","النشـــــــــــــــــــــــــاط","المنظم","من","إلى","القاعة","التكرار",null,null,null,"بيان بعدد الأنشطة شهريًا"]
[{"$f":"IF(B4=\"\",\"\",TEXT(B4,\"dddd\"))","v":""},null,null,null,null,null,null,{"$f":"COUNTIFS(G:G,G4,F:F,F4,E:E,E4,B:B,B4)","v":0},null,null,null,"القاعة","عدد الأنشطة",null,null,"اجتماع"]
["",null,null,null,null,null,null,0,null,null,null,"الندوات",{"$f":"IFERROR(COUNTIF($G$4:G100,L5),\"\")","v":0}]
["",null,null,null,null,null,null,0,null,null,null,"مقرري اللجان",{"$f":"IFERROR(COUNTIF($G$4:G101,L6),\"\")","v":0}]
["",null,null,null,null,null,null,0,null,null,null,"الآداب",{"$f":"IFERROR(COUNTIF($G$4:G102,L7),\"\")","v":0}]
["",null,null,null,null,null,null,0,null,null,null,"العلوم الاجتماعية",{"$f":"IFERROR(COUNTIF($G$4:G103,L8),\"\")","v":0}]
["",null,null,null,null,null,null,0,null,null,null,"القاعة العامة",{"$f":"IFERROR(COUNTIF($G$4:G104,L9),\"\")","v":0}]
["",null,null,null,null,null,null,0,null,null,null,"المؤتمرات",{"$f":"IFERROR(COUNTIF($G$4:G105,L10),\"\")","v":0}]
["",null,null,null,null,null,null,0,null,null,null,"المجلس",{"$f":"IFERROR(COUNTIF($G$4:G106,L11),\"\")","v":0}]
["",null,null,null,null,null,null,0,null,null,null,"الفنون",{"$f":"IFERROR(COUNTIF($G$4:G107,L12),\"\")","v":0}]
["",null,null,null,null,null,null,0,null,"10ص",null,"كل القاعات",{"$f":"IFERROR(COUNTIF($G$4:G108,L13),\"\")","v":0}]
["",null,null,null,null,null,null,0,null,"11ص",null,"إجمالى عدد الأنشطة",{"$f":"SUM(M5:M13)","v":0}]
["",null,null,null,null,null,null,0,null,"12م",null,"عدد الاجتماعات ",{"$f":"IFERROR(COUNTIF($C$4:C112,P6),\"\")","v":0}]
["",null,null,null,null,null,null,0,null,"1م"]
["",null,null,null,null,null,null,0,null,"2م"]
["",null,null,null,null,null,null,0,null,"3م"]
["",null,null,null,null,null,null,0,null,"4م"]
["",null,null,null,null,null,null,0,null,"5م"]
["",null,null,null,null,null,null,0,null,"6م"]
["",null,null,null,null,null,null,0,null,"7م"]
["",null,null,null,null,null,null,0,null,"8م"]
["",null,null,null,null,null,null,0,null,"9م"]
["",null,null,null,null,null,null,0]
["",null,null,null,null,null,null,0]
["",null,null,null,null,null,null,0]
["",null,null,null,null,null,null,0]
["",null,null,null,null,null,null,0]
["",null,null,null,null,null,null,0]
["",null,null,null,null,null,null,0]
["",null,null,null,null,null,null,0]
["",null,null,null,null,null,null,0]
["",null,null,null,null,null,null,0]
["",null,null,null,null,null,null,0]
["",null,null,null,null,null,null,0]
["",null,null,null,null,null,null,0]
["",null,null,null,null,null,null,0]
["",null,null,null,null,null,null,0,null,"الندوات"]
["",null,null,null,null,null,null,0,null,"مقرري اللجان"]
["",null,null,null,null,null,null,0,null,"الآداب"]
["",null,null,null,null,null,null,0,null,"العلوم الاجتماعية"]
["",null,null,null,null,null,null,0,null,"القاعة العامة"]
["",null,null,null,null,null,null,0,null,"المؤتمرات"]
["",null,null,null,null,null,null,0,null,"المجلس"]
["",null,null,null,null,null,null,0,null,"الفنون"]
["",null,null,null,null,null,null,0,null,"كل القاعات"]
["",null,null,null,null,null,null,0]
["",null,null,null,null,null,null,0]
["",null,null,null,null,null,null,0]
["",null,null,null,null,null,null,0]
["",null,null,null,null,null,null,0]
["",null,null,null,null,null,null,0]
["",null,null,null,null,null,null,0]
["",null,null,null,null,null,null,0]
["",null,null,null,null,null,null,0]
["",null,null,null,null,null,null,0]
["",null,null,null,null,null,null,0]
["",null,null,null,null,null,null,0]
["",null,null,null,null,null,null,0]
["",null,null,null,null,null,null,0]
["",null,null,null,null,null,null,0]
["",null,null,null,null,null,null,0]
["",null,null,null,null,null,null,0]
["",null,null,null,null,null,null,0]
["",null,null,null,null,null,null,0]
["",null,null,null,null,null,null,0]
[{"$f":"IF(B68=\"\",\"\",TEXT(B68,\"dddd\"))","v":""},null,null,null,null,null,null,{"$f":"COUNTIFS(G:G,G68,F:F,F68,E:E,E68,B:B,B68)","v":0}]
["",null,null,null,null,null,null,0]
["",null,null,null,null,null,null,0]
["",null,null,null,null,null,null,0]
["",null,null,null,null,null,null,0]
["",null,null,null,null,null,null,0]
["",null,null,null,null,null,null,0]
["",null,null,null,null,null,null,0]
["",null,null,null,null,null,null,0]
["",null,null,null,null,null,null,0]
["",null,null,null,null,null,null,0]
["",null,null,null,null,null,null,0]
["",null,null,null,null,null,null,0]
["",null,null,null,null,null,null,0]
["",null,null,null,null,null,null,0]
["",null,null,null,null,null,null,0]
["",null,null,null,null,null,null,0]
["",null,null,null,null,null,null,0]
["",null,null,null,null,null,null,0]
["",null,null,null,null,null,null,0]
["",null,null,null,null,null,null,0]
["",null,null,null,null,null,null,0]
["",null,null,null,null,null,null,0]
["",null,null,null,null,null,null,0]
["",null,null,null,null,null,null,0]
["",null,null,null,null,null,null,0]
["",null,null,null,null,null,null,0]
["",null,null,null,null,null,null,0]
["",null,null,null,null,null,null,0]
["",null,null,null,null,null,null,0]
["",null,null,null,null,null,null,0]
["",null,null,null,null,null,null,0]
["",null,null,null,null,null,null,0]

{"sheet":"مايو","index":4,"n_rows":100,"n_cols":16,"rows_kept":100,"cut":false,"hidden":false,"merged":[[0,0,1,6],[2,11,2,12]]}
["أنشطة شهر مايو 2021",null,null,null,null,null,null," "]
[]
["اليوم","التاريخ","النشـــــــــــــــــــــــــاط","المنظم","من","إلى","القاعة","التكرار",null,null,null,"بيان بعدد الأنشطة شهريًا"]
[{"$f":"IF(B4=\"\",\"\",TEXT(B4,\"dddd\"))","v":""},null,null,null,null,null,null,{"$f":"COUNTIFS(G:G,G4,F:F,F4,E:E,E4,B:B,B4)","v":0},null,null,null,"القاعة","عدد الأنشطة",null,null,"اجتماع"]
["",null,null,null,null,null,null,0,null,null,null,"الندوات",{"$f":"IFERROR(COUNTIF($G$4:G100,L5),\"\")","v":0}]
["",null,null,null,null,null,null,0,null,null,null,"مقرري اللجان",{"$f":"IFERROR(COUNTIF($G$4:G101,L6),\"\")","v":0}]
["",null,null,null,null,null,null,0,null,null,null,"الآداب",{"$f":"IFERROR(COUNTIF($G$4:G102,L7),\"\")","v":0}]
["",null,null,null,null,null,null,0,null,null,null,"العلوم الاجتماعية",{"$f":"IFERROR(COUNTIF($G$4:G103,L8),\"\")","v":0}]
["",null,null,null,null,null,null,0,null,null,null,"القاعة العامة",{"$f":"IFERROR(COUNTIF($G$4:G104,L9),\"\")","v":0}]
["",null,null,null,null,null,null,0,null,null,null,"المؤتمرات",{"$f":"IFERROR(COUNTIF($G$4:G105,L10),\"\")","v":0}]
["",null,null,null,null,null,null,0,null,null,null,"المجلس",{"$f":"IFERROR(COUNTIF($G$4:G106,L11),\"\")","v":0}]
["",null,null,null,null,null,null,0,null,null,null,"الفنون",{"$f":"IFERROR(COUNTIF($G$4:G107,L12),\"\")","v":0}]
["",null,null,null,null,null,null,0,null,"10ص",null,"كل القاعات",{"$f":"IFERROR(COUNTIF($G$4:G108,L13),\"\")","v":0}]
["",null,null,null,null,null,null,0,null,"11ص",null,"إجمالى عدد الأنشطة",{"$f":"SUM(M5:M13)","v":0}]
["",null,null,null,null,null,null,0,null,"12م",null,"عدد الاجتماعات ",{"$f":"IFERROR(COUNTIF($C$4:C112,P6),\"\")","v":0}]
["",null,null,null,null,null,null,0,null,"1م"]
["",null,null,null,null,null,null,0,null,"2م"]
["",null,null,null,null,null,null,0,null,"3م"]
["",null,null,null,null,null,null,0,null,"4م"]
["",null,null,null,null,null,null,0,null,"5م"]
["",null,null,null,null,null,null,0,null,"6م"]
["",null,null,null,null,null,null,0,null,"7م"]
["",null,null,null,null,null,null,0,null,"8م"]
["",null,null,null,null,null,null,0,null,"9م"]
["",null,null,null,null,null,null,0]
["",null,null,null,null,null,null,0]
["",null,null,null,null,null,null,0]
["",null,null,null,null,null,null,0]
["",null,null,null,null,null,null,0]
["",null,null,null,null,null,null,0]
["",null,null,null,null,null,null,0]
["",null,null,null,null,null,null,0]
["",null,null,null,null,null,null,0]
["",null,null,null,null,null,null,0]
["",null,null,null,null,null,null,0]
["",null,null,null,null,null,null,0]
["",null,null,null,null,null,null,0]
["",null,null,null,null,null,null,0]
["",null,null,null,null,null,null,0,null,"الندوات"]
["",null,null,null,null,null,null,0,null,"مقرري اللجان"]
["",null,null,null,null,null,null,0,null,"الآداب"]
["",null,null,null,null,null,null,0,null,"العلوم الاجتماعية"]
["",null,null,null,null,null,null,0,null,"القاعة العامة"]
["",null,null,null,null,null,null,0,null,"المؤتمرات"]
["",null,null,null,null,null,null,0,null,"المجلس"]
["",null,null,null,null,null,null,0,null,"الفنون"]
["",null,null,null,null,null,null,0,null,"كل القاعات"]
["",null,null,null,null,null,null,0]
["",null,null,null,null,null,null,0]
["",null,null,null,null,null,null,0]
["",null,null,null,null,null,null,0]
["",null,null,null,null,null,null,0]
["",null,null,null,null,null,null,0]
["",null,null,null,null,null,null,0]
["",null,null,null,null,null,null,0]
["",null,null,null,null,null,null,0]
["",null,null,null,null,null,null,0]
["",null,null,null,null,null,null,0]
["",null,null,null,null,null,null,0]
["",null,null,null,null,null,null,0]
["",null,null,null,null,null,null,0]
["",null,null,null,null,null,null,0]
["",null,null,null,null,null,null,0]
["",null,null,null,null,null,null,0]
["",null,null,null,null,null,null,0]
["",null,null,null,null,null,null,0]
["",null,null,null,null,null,null,0]
[{"$f":"IF(B68=\"\",\"\",TEXT(B68,\"dddd\"))","v":""},null,null,null,null,null,null,{"$f":"COUNTIFS(G:G,G68,F:F,F68,E:E,E68,B:B,B68)","v":0}]
["",null,null,null,null,null,null,0]
["",null,null,null,null,null,null,0]
["",null,null,null,null,null,null,0]
["",null,null,null,null,null,null,0]
["",null,null,null,null,null,null,0]
["",null,null,null,null,null,null,0]
["",null,null,null,null,null,null,0]
["",null,null,null,null,null,null,0]
["",null,null,null,null,null,null,0]
["",null,null,null,null,null,null,0]
["",null,null,null,null,null,null,0]
["",null,null,null,null,null,null,0]
["",null,null,null,null,null,null,0]
["",null,null,null,null,null,null,0]
["",null,null,null,null,null,null,0]
["",null,null,null,null,null,null,0]
["",null,null,null,null,null,null,0]
["",null,null,null,null,null,null,0]
["",null,null,null,null,null,null,0]
["",null,null,null,null,null,null,0]
["",null,null,null,null,null,null,0]
["",null,null,null,null,null,null,0]
["",null,null,null,null,null,null,0]
["",null,null,null,null,null,null,0]
["",null,null,null,null,null,null,0]
["",null,null,null,null,null,null,0]
["",null,null,null,null,null,null,0]
["",null,null,null,null,null,null,0]
["",null,null,null,null,null,null,0]
["",null,null,null,null,null,null,0]
["",null,null,null,null,null,null,0]
["",null,null,null,null,null,null,0]

{"sheet":"يونيو","index":5,"n_rows":100,"n_cols":16,"rows_kept":100,"cut":false,"hidden":false,"merged":[[0,0,1,6],[2,11,2,12]]}
["أنشطة شهر يونيو 2021",null,null,null,null,null,null," "]
[]
["اليوم","التاريخ","النشـــــــــــــــــــــــــاط","المنظم","من","إلى","القاعة","التكرار",null,null,null,"بيان بعدد الأنشطة شهريًا"]
[{"$f":"IF(B4=\"\",\"\",TEXT(B4,\"dddd\"))","v":""},null,null,null,null,null,null,{"$f":"COUNTIFS(G:G,G4,F:F,F4,E:E,E4,B:B,B4)","v":0},null,null,null,"القاعة","عدد الأنشطة",null,null,"اجتماع"]
["",null,null,null,null,null,null,0,null,null,null,"الندوات",{"$f":"IFERROR(COUNTIF($G$4:G100,L5),\"\")","v":0}]
["",null,null,null,null,null,null,0,null,null,null,"مقرري اللجان",{"$f":"IFERROR(COUNTIF($G$4:G101,L6),\"\")","v":0}]
["",null,null,null,null,null,null,0,null,null,null,"الآداب",{"$f":"IFERROR(COUNTIF($G$4:G102,L7),\"\")","v":0}]
["",null,null,null,null,null,null,0,null,null,null,"العلوم الاجتماعية",{"$f":"IFERROR(COUNTIF($G$4:G103,L8),\"\")","v":0}]
["",null,null,null,null,null,null,0,null,null,null,"القاعة العامة",{"$f":"IFERROR(COUNTIF($G$4:G104,L9),\"\")","v":0}]
["",null,null,null,null,null,null,0,null,null,null,"المؤتمرات",{"$f":"IFERROR(COUNTIF($G$4:G105,L10),\"\")","v":0}]
["",null,null,null,null,null,null,0,null,null,null,"المجلس",{"$f":"IFERROR(COUNTIF($G$4:G106,L11),\"\")","v":0}]
["",null,null,null,null,null,null,0,null,null,null,"الفنون",{"$f":"IFERROR(COUNTIF($G$4:G107,L12),\"\")","v":0}]
["",null,null,null,null,null,null,0,null,"10ص",null,"كل القاعات",{"$f":"IFERROR(COUNTIF($G$4:G108,L13),\"\")","v":0}]
["",null,null,null,null,null,null,0,null,"11ص",null,"إجمالى عدد الأنشطة",{"$f":"SUM(M5:M13)","v":0}]
["",null,null,null,null,null,null,0,null,"12م",null,"عدد الاجتماعات ",{"$f":"IFERROR(COUNTIF($C$4:C112,P6),\"\")","v":0}]
["",null,null,null,null,null,null,0,null,"1م"]
["",null,null,null,null,null,null,0,null,"2م"]
["",null,null,null,null,null,null,0,null,"3م"]
["",null,null,null,null,null,null,0,null,"4م"]
["",null,null,null,null,null,null,0,null,"5م"]
["",null,null,null,null,null,null,0,null,"6م"]
["",null,null,null,null,null,null,0,null,"7م"]
["",null,null,null,null,null,null,0,null,"8م"]
["",null,null,null,null,null,null,0,null,"9م"]
["",null,null,null,null,null,null,0]
["",null,null,null,null,null,null,0]
["",null,null,null,null,null,null,0]
["",null,null,null,null,null,null,0]
["",null,null,null,null,null,null,0]
["",null,null,null,null,null,null,0]
["",null,null,null,null,null,null,0]
["",null,null,null,null,null,null,0]
["",null,null,null,null,null,null,0]
["",null,null,null,null,null,null,0]
["",null,null,null,null,null,null,0]
["",null,null,null,null,null,null,0]
["",null,null,null,null,null,null,0]
["",null,null,null,null,null,null,0]
["",null,null,null,null,null,null,0,null,"الندوات"]
["",null,null,null,null,null,null,0,null,"مقرري اللجان"]
["",null,null,null,null,null,null,0,null,"الآداب"]
["",null,null,null,null,null,null,0,null,"العلوم الاجتماعية"]
["",null,null,null,null,null,null,0,null,"القاعة العامة"]
["",null,null,null,null,null,null,0,null,"المؤتمرات"]
["",null,null,null,null,null,null,0,null,"المجلس"]
["",null,null,null,null,null,null,0,null,"الفنون"]
["",null,null,null,null,null,null,0,null,"كل القاعات"]
["",null,null,null,null,null,null,0]
["",null,null,null,null,null,null,0]
["",null,null,null,null,null,null,0]
["",null,null,null,null,null,null,0]
["",null,null,null,null,null,null,0]
["",null,null,null,null,null,null,0]
["",null,null,null,null,null,null,0]
["",null,null,null,null,null,null,0]
["",null,null,null,null,null,null,0]
["",null,null,null,null,null,null,0]
["",null,null,null,null,null,null,0]
["",null,null,null,null,null,null,0]
["",null,null,null,null,null,null,0]
["",null,null,null,null,null,null,0]
["",null,null,null,null,null,null,0]
["",null,null,null,null,null,null,0]
["",null,null,null,null,null,null,0]
["",null,null,null,null,null,null,0]
["",null,null,null,null,null,null,0]
["",null,null,null,null,null,null,0]
[{"$f":"IF(B68=\"\",\"\",TEXT(B68,\"dddd\"))","v":""},null,null,null,null,null,null,{"$f":"COUNTIFS(G:G,G68,F:F,F68,E:E,E68,B:B,B68)","v":0}]
["",null,null,null,null,null,null,0]
["",null,null,null,null,null,null,0]
["",null,null,null,null,null,null,0]
["",null,null,null,null,null,null,0]
["",null,null,null,null,null,null,0]
["",null,null,null,null,null,null,0]
["",null,null,null,null,null,null,0]
["",null,null,null,null,null,null,0]
["",null,null,null,null,null,null,0]
["",null,null,null,null,null,null,0]
["",null,null,null,null,null,null,0]
["",null,null,null,null,null,null,0]
["",null,null,null,null,null,null,0]
["",null,null,null,null,null,null,0]
["",null,null,null,null,null,null,0]
["",null,null,null,null,null,null,0]
["",null,null,null,null,null,null,0]
["",null,null,null,null,null,null,0]
["",null,null,null,null,null,null,0]
["",null,null,null,null,null,null,0]
["",null,null,null,null,null,null,0]
["",null,null,null,null,null,null,0]
["",null,null,null,null,null,null,0]
["",null,null,null,null,null,null,0]
["",null,null,null,null,null,null,0]
["",null,null,null,null,null,null,0]
["",null,null,null,null,null,null,0]
["",null,null,null,null,null,null,0]
["",null,null,null,null,null,null,0]
["",null,null,null,null,null,null,0]
["",null,null,null,null,null,null,0]
["",null,null,null,null,null,null,0]

{"sheet":"يوليو","index":6,"n_rows":100,"n_cols":16,"rows_kept":100,"cut":false,"hidden":false,"merged":[[0,0,1,6],[2,11,2,12]]}
["أنشطة شهر يوليو 2021",null,null,null,null,null,null," "]
[]
["اليوم","التاريخ","النشـــــــــــــــــــــــــاط","المنظم","من","إلى","القاعة","التكرار",null,null,null,"بيان بعدد الأنشطة شهريًا"]
[{"$f":"IF(B4=\"\",\"\",TEXT(B4,\"dddd\"))","v":""},null,null,null,null,null,null,{"$f":"COUNTIFS(G:G,G4,F:F,F4,E:E,E4,B:B,B4)","v":0},null,null,null,"القاعة","عدد الأنشطة",null,null,"اجتماع"]
["",null,null,null,null,null,null,0,null,null,null,"الندوات",{"$f":"IFERROR(COUNTIF($G$4:G100,L5),\"\")","v":0}]
["",null,null,null,null,null,null,0,null,null,null,"مقرري اللجان",{"$f":"IFERROR(COUNTIF($G$4:G101,L6),\"\")","v":0}]
["",null,null,null,null,null,null,0,null,null,null,"الآداب",{"$f":"IFERROR(COUNTIF($G$4:G102,L7),\"\")","v":0}]
["",null,null,null,null,null,null,0,null,null,null,"العلوم الاجتماعية",{"$f":"IFERROR(COUNTIF($G$4:G103,L8),\"\")","v":0}]
["",null,null,null,null,null,null,0,null,null,null,"القاعة العامة",{"$f":"IFERROR(COUNTIF($G$4:G104,L9),\"\")","v":0}]
["",null,null,null,null,null,null,0,null,null,null,"المؤتمرات",{"$f":"IFERROR(COUNTIF($G$4:G105,L10),\"\")","v":0}]
["",null,null,null,null,null,null,0,null,null,null,"المجلس",{"$f":"IFERROR(COUNTIF($G$4:G106,L11),\"\")","v":0}]
["",null,null,null,null,null,null,0,null,null,null,"الفنون",{"$f":"IFERROR(COUNTIF($G$4:G107,L12),\"\")","v":0}]
["",null,null,null,null,null,null,0,null,"10ص",null,"كل القاعات",{"$f":"IFERROR(COUNTIF($G$4:G108,L13),\"\")","v":0}]
["",null,null,null,null,null,null,0,null,"11ص",null,"إجمالى عدد الأنشطة",{"$f":"SUM(M5:M13)","v":0}]
["",null,null,null,null,null,null,0,null,"12م",null,"عدد الاجتماعات ",{"$f":"IFERROR(COUNTIF($C$4:C112,P6),\"\")","v":0}]
["",null,null,null,null,null,null,0,null,"1م"]
["",null,null,null,null,null,null,0,null,"2م"]
["",null,null,null,null,null,null,0,null,"3م"]
["",null,null,null,null,null,null,0,null,"4م"]
["",null,null,null,null,null,null,0,null,"5م"]
["",null,null,null,null,null,null,0,null,"6م"]
["",null,null,null,null,null,null,0,null,"7م"]
["",null,null,null,null,null,null,0,null,"8م"]
["",null,null,null,null,null,null,0,null,"9م"]
["",null,null,null,null,null,null,0]
["",null,null,null,null,null,null,0]
["",null,null,null,null,null,null,0]
["",null,null,null,null,null,null,0]
["",null,null,null,null,null,null,0]
["",null,null,null,null,null,null,0]
["",null,null,null,null,null,null,0]
["",null,null,null,null,null,null,0]
["",null,null,null,null,null,null,0]
["",null,null,null,null,null,null,0]
["",null,null,null,null,null,null,0]
["",null,null,null,null,null,null,0]
["",null,null,null,null,null,null,0]
["",null,null,null,null,null,null,0]
["",null,null,null,null,null,null,0,null,"الندوات"]
["",null,null,null,null,null,null,0,null,"مقرري اللجان"]
["",null,null,null,null,null,null,0,null,"الآداب"]
["",null,null,null,null,null,null,0,null,"العلوم الاجتماعية"]
["",null,null,null,null,null,null,0,null,"القاعة العامة"]
["",null,null,null,null,null,null,0,null,"المؤتمرات"]
["",null,null,null,null,null,null,0,null,"المجلس"]
["",null,null,null,null,null,null,0,null,"الفنون"]
["",null,null,null,null,null,null,0,null,"كل القاعات"]
["",null,null,null,null,null,null,0]
["",null,null,null,null,null,null,0]
["",null,null,null,null,null,null,0]
["",null,null,null,null,null,null,0]
["",null,null,null,null,null,null,0]
["",null,null,null,null,null,null,0]
["",null,null,null,null,null,null,0]
["",null,null,null,null,null,null,0]
["",null,null,null,null,null,null,0]
["",null,null,null,null,null,null,0]
["",null,null,null,null,null,null,0]
["",null,null,null,null,null,null,0]
["",null,null,null,null,null,null,0]
["",null,null,null,null,null,null,0]
["",null,null,null,null,null,null,0]
["",null,null,null,null,null,null,0]
["",null,null,null,null,null,null,0]
["",null,null,null,null,null,null,0]
["",null,null,null,null,null,null,0]
["",null,null,null,null,null,null,0]
[{"$f":"IF(B68=\"\",\"\",TEXT(B68,\"dddd\"))","v":""},null,null,null,null,null,null,{"$f":"COUNTIFS(G:G,G68,F:F,F68,E:E,E68,B:B,B68)","v":0}]
["",null,null,null,null,null,null,0]
["",null,null,null,null,null,null,0]
["",null,null,null,null,null,null,0]
["",null,null,null,null,null,null,0]
["",null,null,null,null,null,null,0]
["",null,null,null,null,null,null,0]
["",null,null,null,null,null,null,0]
["",null,null,null,null,null,null,0]
["",null,null,null,null,null,null,0]
["",null,null,null,null,null,null,0]
["",null,null,null,null,null,null,0]
["",null,null,null,null,null,null,0]
["",null,null,null,null,null,null,0]
["",null,null,null,null,null,null,0]
["",null,null,null,null,null,null,0]
["",null,null,null,null,null,null,0]
["",null,null,null,null,null,null,0]
["",null,null,null,null,null,null,0]
["",null,null,null,null,null,null,0]
["",null,null,null,null,null,null,0]
["",null,null,null,null,null,null,0]
["",null,null,null,null,null,null,0]
["",null,null,null,null,null,null,0]
["",null,null,null,null,null,null,0]
["",null,null,null,null,null,null,0]
["",null,null,null,null,null,null,0]
["",null,null,null,null,null,null,0]
["",null,null,null,null,null,null,0]
["",null,null,null,null,null,null,0]
["",null,null,null,null,null,null,0]
["",null,null,null,null,null,null,0]
["",null,null,null,null,null,null,0]

{"sheet":"أغسطس","index":7,"n_rows":100,"n_cols":16,"rows_kept":100,"cut":false,"hidden":false,"merged":[[0,0,1,6],[2,11,2,12]]}
["أنشطة شهر أغسطس 2021",null,null,null,null,null,null," "]
[]
["اليوم","التاريخ","النشـــــــــــــــــــــــــاط","المنظم","من","إلى","القاعة","التكرار",null,null,null,"بيان بعدد الأنشطة شهريًا"]
[{"$f":"IF(B4=\"\",\"\",TEXT(B4,\"dddd\"))","v":""},null,null,null,null,null,null,{"$f":"COUNTIFS(G:G,G4,F:F,F4,E:E,E4,B:B,B4)","v":0},null,null,null,"القاعة","عدد الأنشطة",null,null,"اجتماع"]
["",null,null,null,null,null,null,0,null,null,null,"الندوات",{"$f":"IFERROR(COUNTIF($G$4:G100,L5),\"\")","v":0}]
["",null,null,null,null,null,null,0,null,null,null,"مقرري اللجان",{"$f":"IFERROR(COUNTIF($G$4:G101,L6),\"\")","v":0}]
["",null,null,null,null,null,null,0,null,null,null,"الآداب",{"$f":"IFERROR(COUNTIF($G$4:G102,L7),\"\")","v":0}]
["",null,null,null,null,null,null,0,null,null,null,"العلوم الاجتماعية",{"$f":"IFERROR(COUNTIF($G$4:G103,L8),\"\")","v":0}]
["",null,null,null,null,null,null,0,null,null,null,"القاعة العامة",{"$f":"IFERROR(COUNTIF($G$4:G104,L9),\"\")","v":0}]
["",null,null,null,null,null,null,0,null,null,null,"المؤتمرات",{"$f":"IFERROR(COUNTIF($G$4:G105,L10),\"\")","v":0}]
["",null,null,null,null,null,null,0,null,null,null,"المجلس",{"$f":"IFERROR(COUNTIF($G$4:G106,L11),\"\")","v":0}]
["",null,null,null,null,null,null,0,null,null,null,"الفنون",{"$f":"IFERROR(COUNTIF($G$4:G107,L12),\"\")","v":0}]
["",null,null,null,null,null,null,0,null,"10ص",null,"كل القاعات",{"$f":"IFERROR(COUNTIF($G$4:G108,L13),\"\")","v":0}]
["",null,null,null,null,null,null,0,null,"11ص",null,"إجمالى عدد الأنشطة",{"$f":"SUM(M5:M13)","v":0}]
["",null,null,null,null,null,null,0,null,"12م",null,"عدد الاجتماعات ",{"$f":"IFERROR(COUNTIF($C$4:C112,P6),\"\")","v":0}]
["",null,null,null,null,null,null,0,null,"1م"]
["",null,null,null,null,null,null,0,null,"2م"]
["",null,null,null,null,null,null,0,null,"3م"]
["",null,null,null,null,null,null,0,null,"4م"]
["",null,null,null,null,null,null,0,null,"5م"]
["",null,null,null,null,null,null,0,null,"6م"]
["",null,null,null,null,null,null,0,null,"7م"]
["",null,null,null,null,null,null,0,null,"8م"]
["",null,null,null,null,null,null,0,null,"9م"]
["",null,null,null,null,null,null,0]
["",null,null,null,null,null,null,0]
["",null,null,null,null,null,null,0]
["",null,null,null,null,null,null,0]
["",null,null,null,null,null,null,0]
["",null,null,null,null,null,null,0]
["",null,null,null,null,null,null,0]
["",null,null,null,null,null,null,0]
["",null,null,null,null,null,null,0]
["",null,null,null,null,null,null,0]
["",null,null,null,null,null,null,0]
["",null,null,null,null,null,null,0]
["",null,null,null,null,null,null,0]
["",null,null,null,null,null,null,0]
["",null,null,null,null,null,null,0,null,"الندوات"]
["",null,null,null,null,null,null,0,null,"مقرري اللجان"]
["",null,null,null,null,null,null,0,null,"الآداب"]
["",null,null,null,null,null,null,0,null,"العلوم الاجتماعية"]
["",null,null,null,null,null,null,0,null,"القاعة العامة"]
["",null,null,null,null,null,null,0,null,"المؤتمرات"]
["",null,null,null,null,null,null,0,null,"المجلس"]
["",null,null,null,null,null,null,0,null,"الفنون"]
["",null,null,null,null,null,null,0,null,"كل القاعات"]
["",null,null,null,null,null,null,0]
["",null,null,null,null,null,null,0]
["",null,null,null,null,null,null,0]
["",null,null,null,null,null,null,0]
["",null,null,null,null,null,null,0]
["",null,null,null,null,null,null,0]
["",null,null,null,null,null,null,0]
["",null,null,null,null,null,null,0]
["",null,null,null,null,null,null,0]
["",null,null,null,null,null,null,0]
["",null,null,null,null,null,null,0]
["",null,null,null,null,null,null,0]
["",null,null,null,null,null,null,0]
["",null,null,null,null,null,null,0]
["",null,null,null,null,null,null,0]
["",null,null,null,null,null,null,0]
["",null,null,null,null,null,null,0]
["",null,null,null,null,null,null,0]
["",null,null,null,null,null,null,0]
["",null,null,null,null,null,null,0]
[{"$f":"IF(B68=\"\",\"\",TEXT(B68,\"dddd\"))","v":""},null,null,null,null,null,null,{"$f":"COUNTIFS(G:G,G68,F:F,F68,E:E,E68,B:B,B68)","v":0}]
["",null,null,null,null,null,null,0]
["",null,null,null,null,null,null,0]
["",null,null,null,null,null,null,0]
["",null,null,null,null,null,null,0]
["",null,null,null,null,null,null,0]
["",null,null,null,null,null,null,0]
["",null,null,null,null,null,null,0]
["",null,null,null,null,null,null,0]
["",null,null,null,null,null,null,0]
["",null,null,null,null,null,null,0]
["",null,null,null,null,null,null,0]
["",null,null,null,null,null,null,0]
["",null,null,null,null,null,null,0]
["",null,null,null,null,null,null,0]
["",null,null,null,null,null,null,0]
["",null,null,null,null,null,null,0]
["",null,null,null,null,null,null,0]
["",null,null,null,null,null,null,0]
["",null,null,null,null,null,null,0]
["",null,null,null,null,null,null,0]
["",null,null,null,null,null,null,0]
["",null,null,null,null,null,null,0]
["",null,null,null,null,null,null,0]
["",null,null,null,null,null,null,0]
["",null,null,null,null,null,null,0]
["",null,null,null,null,null,null,0]
["",null,null,null,null,null,null,0]
["",null,null,null,null,null,null,0]
["",null,null,null,null,null,null,0]
["",null,null,null,null,null,null,0]
["",null,null,null,null,null,null,0]
["",null,null,null,null,null,null,0]

{"sheet":"سبتمبر","index":8,"n_rows":100,"n_cols":16,"rows_kept":100,"cut":false,"hidden":false,"merged":[[0,0,1,6],[2,11,2,12]]}
["أنشطة شهر سبتمبر 2021",null,null,null,null,null,null," "]
[]
["اليوم","التاريخ","النشـــــــــــــــــــــــــاط","المنظم","من","إلى","القاعة","التكرار",null,null,null,"بيان بعدد الأنشطة شهريًا"]
[{"$f":"IF(B4=\"\",\"\",TEXT(B4,\"dddd\"))","v":""},null,null,null,null,null,null,{"$f":"COUNTIFS(G:G,G4,F:F,F4,E:E,E4,B:B,B4)","v":0},null,null,null,"القاعة","عدد الأنشطة",null,null,"اجتماع"]
["",null,null,null,null,null,null,0,null,null,null,"الندوات",{"$f":"IFERROR(COUNTIF($G$4:G100,L5),\"\")","v":0}]
["",null,null,null,null,null,null,0,null,null,null,"مقرري اللجان",{"$f":"IFERROR(COUNTIF($G$4:G101,L6),\"\")","v":0}]
["",null,null,null,null,null,null,0,null,null,null,"الآداب",{"$f":"IFERROR(COUNTIF($G$4:G102,L7),\"\")","v":0}]
["",null,null,null,null,null,null,0,null,null,null,"العلوم الاجتماعية",{"$f":"IFERROR(COUNTIF($G$4:G103,L8),\"\")","v":0}]
["",null,null,null,null,null,null,0,null,null,null,"القاعة العامة",{"$f":"IFERROR(COUNTIF($G$4:G104,L9),\"\")","v":0}]
["",null,null,null,null,null,null,0,null,null,null,"المؤتمرات",{"$f":"IFERROR(COUNTIF($G$4:G105,L10),\"\")","v":0}]
["",null,null,null,null,null,null,0,null,null,null,"المجلس",{"$f":"IFERROR(COUNTIF($G$4:G106,L11),\"\")","v":0}]
["",null,null,null,null,null,null,0,null,null,null,"الفنون",{"$f":"IFERROR(COUNTIF($G$4:G107,L12),\"\")","v":0}]
["",null,null,null,null,null,null,0,null,"10ص",null,"كل القاعات",{"$f":"IFERROR(COUNTIF($G$4:G108,L13),\"\")","v":0}]
["",null,null,null,null,null,null,0,null,"11ص",null,"إجمالى عدد الأنشطة",{"$f":"SUM(M5:M13)","v":0}]
["",null,null,null,null,null,null,0,null,"12م",null,"عدد الاجتماعات ",{"$f":"IFERROR(COUNTIF($C$4:C112,P6),\"\")","v":0}]
["",null,null,null,null,null,null,0,null,"1م"]
["",null,null,null,null,null,null,0,null,"2م"]
["",null,null,null,null,null,null,0,null,"3م"]
["",null,null,null,null,null,null,0,null,"4م"]
["",null,null,null,null,null,null,0,null,"5م"]
["",null,null,null,null,null,null,0,null,"6م"]
["",null,null,null,null,null,null,0,null,"7م"]
["",null,null,null,null,null,null,0,null,"8م"]
["",null,null,null,null,null,null,0,null,"9م"]
["",null,null,null,null,null,null,0]
["",null,null,null,null,null,null,0]
["",null,null,null,null,null,null,0]
["",null,null,null,null,null,null,0]
["",null,null,null,null,null,null,0]
["",null,null,null,null,null,null,0]
["",null,null,null,null,null,null,0]
["",null,null,null,null,null,null,0]
["",null,null,null,null,null,null,0]
["",null,null,null,null,null,null,0]
["",null,null,null,null,null,null,0]
["",null,null,null,null,null,null,0]
["",null,null,null,null,null,null,0]
["",null,null,null,null,null,null,0]
["",null,null,null,null,null,null,0,null,"الندوات"]
["",null,null,null,null,null,null,0,null,"مقرري اللجان"]
["",null,null,null,null,null,null,0,null,"الآداب"]
["",null,null,null,null,null,null,0,null,"العلوم الاجتماعية"]
["",null,null,null,null,null,null,0,null,"القاعة العامة"]
["",null,null,null,null,null,null,0,null,"المؤتمرات"]
["",null,null,null,null,null,null,0,null,"المجلس"]
["",null,null,null,null,null,null,0,null,"الفنون"]
["",null,null,null,null,null,null,0,null,"كل القاعات"]
["",null,null,null,null,null,null,0]
["",null,null,null,null,null,null,0]
["",null,null,null,null,null,null,0]
["",null,null,null,null,null,null,0]
["",null,null,null,null,null,null,0]
["",null,null,null,null,null,null,0]
["",null,null,null,null,null,null,0]
["",null,null,null,null,null,null,0]
["",null,null,null,null,null,null,0]
["",null,null,null,null,null,null,0]
["",null,null,null,null,null,null,0]
["",null,null,null,null,null,null,0]
["",null,null,null,null,null,null,0]
["",null,null,null,null,null,null,0]
["",null,null,null,null,null,null,0]
["",null,null,null,null,null,null,0]
["",null,null,null,null,null,null,0]
["",null,null,null,null,null,null,0]
["",null,null,null,null,null,null,0]
["",null,null,null,null,null,null,0]
[{"$f":"IF(B68=\"\",\"\",TEXT(B68,\"dddd\"))","v":""},null,null,null,null,null,null,{"$f":"COUNTIFS(G:G,G68,F:F,F68,E:E,E68,B:B,B68)","v":0}]
["",null,null,null,null,null,null,0]
["",null,null,null,null,null,null,0]
["",null,null,null,null,null,null,0]
["",null,null,null,null,null,null,0]
["",null,null,null,null,null,null,0]
["",null,null,null,null,null,null,0]
["",null,null,null,null,null,null,0]
["",null,null,null,null,null,null,0]
["",null,null,null,null,null,null,0]
["",null,null,null,null,null,null,0]
["",null,null,null,null,null,null,0]
["",null,null,null,null,null,null,0]
["",null,null,null,null,null,null,0]
["",null,null,null,null,null,null,0]
["",null,null,null,null,null,null,0]
["",null,null,null,null,null,null,0]
["",null,null,null,null,null,null,0]
["",null,null,null,null,null,null,0]
["",null,null,null,null,null,null,0]
["",null,null,null,null,null,null,0]
["",null,null,null,null,null,null,0]
["",null,null,null,null,null,null,0]
["",null,null,null,null,null,null,0]
["",null,null,null,null,null,null,0]
["",null,null,null,null,null,null,0]
["",null,null,null,null,null,null,0]
["",null,null,null,null,null,null,0]
["",null,null,null,null,null,null,0]
["",null,null,null,null,null,null,0]
["",null,null,null,null,null,null,0]
["",null,null,null,null,null,null,0]
["",null,null,null,null,null,null,0]

{"sheet":"أكتوبر","index":9,"n_rows":100,"n_cols":16,"rows_kept":100,"cut":false,"hidden":false,"merged":[[0,0,1,6],[2,11,2,12]]}
["أنشطة شهر أكتوبر 2021",null,null,null,null,null,null," "]
[]
["اليوم","التاريخ","النشـــــــــــــــــــــــــاط","المنظم","من","إلى","القاعة","التكرار",null,null,null,"بيان بعدد الأنشطة شهريًا"]
[{"$f":"IF(B4=\"\",\"\",TEXT(B4,\"dddd\"))","v":""},null,null,null,null,null,null,{"$f":"COUNTIFS(G:G,G4,F:F,F4,E:E,E4,B:B,B4)","v":0},null,null,null,"القاعة","عدد الأنشطة",null,null,"اجتماع"]
["",null,null,null,null,null,null,0,null,null,null,"الندوات",{"$f":"IFERROR(COUNTIF($G$4:G100,L5),\"\")","v":0}]
["",null,null,null,null,null,null,0,null,null,null,"مقرري اللجان",{"$f":"IFERROR(COUNTIF($G$4:G101,L6),\"\")","v":0}]
["",null,null,null,null,null,null,0,null,null,null,"الآداب",{"$f":"IFERROR(COUNTIF($G$4:G102,L7),\"\")","v":0}]
["",null,null,null,null,null,null,0,null,null,null,"العلوم الاجتماعية",{"$f":"IFERROR(COUNTIF($G$4:G103,L8),\"\")","v":0}]
["",null,null,null,null,null,null,0,null,null,null,"القاعة العامة",{"$f":"IFERROR(COUNTIF($G$4:G104,L9),\"\")","v":0}]
["",null,null,null,null,null,null,0,null,null,null,"المؤتمرات",{"$f":"IFERROR(COUNTIF($G$4:G105,L10),\"\")","v":0}]
["",null,null,null,null,null,null,0,null,null,null,"المجلس",{"$f":"IFERROR(COUNTIF($G$4:G106,L11),\"\")","v":0}]
["",null,null,null,null,null,null,0,null,null,null,"الفنون",{"$f":"IFERROR(COUNTIF($G$4:G107,L12),\"\")","v":0}]
["",null,null,null,null,null,null,0,null,"10ص",null,"كل القاعات",{"$f":"IFERROR(COUNTIF($G$4:G108,L13),\"\")","v":0}]
["",null,null,null,null,null,null,0,null,"11ص",null,"إجمالى عدد الأنشطة",{"$f":"SUM(M5:M13)","v":0}]
["",null,null,null,null,null,null,0,null,"12م",null,"عدد الاجتماعات ",{"$f":"IFERROR(COUNTIF($C$4:C112,P6),\"\")","v":0}]
["",null,null,null,null,null,null,0,null,"1م"]
["",null,null,null,null,null,null,0,null,"2م"]
["",null,null,null,null,null,null,0,null,"3م"]
["",null,null,null,null,null,null,0,null,"4م"]
["",null,null,null,null,null,null,0,null,"5م"]
["",null,null,null,null,null,null,0,null,"6م"]
["",null,null,null,null,null,null,0,null,"7م"]
["",null,null,null,null,null,null,0,null,"8م"]
["",null,null,null,null,null,null,0,null,"9م"]
["",null,null,null,null,null,null,0]
["",null,null,null,null,null,null,0]
["",null,null,null,null,null,null,0]
["",null,null,null,null,null,null,0]
["",null,null,null,null,null,null,0]
["",null,null,null,null,null,null,0]
["",null,null,null,null,null,null,0]
["",null,null,null,null,null,null,0]
["",null,null,null,null,null,null,0]
["",null,null,null,null,null,null,0]
["",null,null,null,null,null,null,0]
["",null,null,null,null,null,null,0]
["",null,null,null,null,null,null,0]
["",null,null,null,null,null,null,0]
["",null,null,null,null,null,null,0,null,"الندوات"]
["",null,null,null,null,null,null,0,null,"مقرري اللجان"]
["",null,null,null,null,null,null,0,null,"الآداب"]
["",null,null,null,null,null,null,0,null,"العلوم الاجتماعية"]
["",null,null,null,null,null,null,0,null,"القاعة العامة"]
["",null,null,null,null,null,null,0,null,"المؤتمرات"]
["",null,null,null,null,null,null,0,null,"المجلس"]
["",null,null,null,null,null,null,0,null,"الفنون"]
["",null,null,null,null,null,null,0,null,"كل القاعات"]
["",null,null,null,null,null,null,0]
["",null,null,null,null,null,null,0]
["",null,null,null,null,null,null,0]
["",null,null,null,null,null,null,0]
["",null,null,null,null,null,null,0]
["",null,null,null,null,null,null,0]
["",null,null,null,null,null,null,0]
["",null,null,null,null,null,null,0]
["",null,null,null,null,null,null,0]
["",null,null,null,null,null,null,0]
["",null,null,null,null,null,null,0]
["",null,null,null,null,null,null,0]
["",null,null,null,null,null,null,0]
["",null,null,null,null,null,null,0]
["",null,null,null,null,null,null,0]
["",null,null,null,null,null,null,0]
["",null,null,null,null,null,null,0]
["",null,null,null,null,null,null,0]
["",null,null,null,null,null,null,0]
["",null,null,null,null,null,null,0]
[{"$f":"IF(B68=\"\",\"\",TEXT(B68,\"dddd\"))","v":""},null,null,null,null,null,null,{"$f":"COUNTIFS(G:G,G68,F:F,F68,E:E,E68,B:B,B68)","v":0}]
["",null,null,null,null,null,null,0]
["",null,null,null,null,null,null,0]
["",null,null,null,null,null,null,0]
["",null,null,null,null,null,null,0]
["",null,null,null,null,null,null,0]
["",null,null,null,null,null,null,0]
["",null,null,null,null,null,null,0]
["",null,null,null,null,null,null,0]
["",null,null,null,null,null,null,0]
["",null,null,null,null,null,null,0]
["",null,null,null,null,null,null,0]
["",null,null,null,null,null,null,0]
["",null,null,null,null,null,null,0]
["",null,null,null,null,null,null,0]
["",null,null,null,null,null,null,0]
["",null,null,null,null,null,null,0]
["",null,null,null,null,null,null,0]
["",null,null,null,null,null,null,0]
["",null,null,null,null,null,null,0]
["",null,null,null,null,null,null,0]
["",null,null,null,null,null,null,0]
["",null,null,null,null,null,null,0]
["",null,null,null,null,null,null,0]
["",null,null,null,null,null,null,0]
["",null,null,null,null,null,null,0]
["",null,null,null,null,null,null,0]
["",null,null,null,null,null,null,0]
["",null,null,null,null,null,null,0]
["",null,null,null,null,null,null,0]
["",null,null,null,null,null,null,0]
["",null,null,null,null,null,null,0]
["",null,null,null,null,null,null,0]

{"sheet":"نوفمبر","index":10,"n_rows":100,"n_cols":16,"rows_kept":100,"cut":false,"hidden":false,"merged":[[0,0,1,6],[2,11,2,12]]}
["أنشطة شهر نوفمبر 2021",null,null,null,null,null,null," "]
[]
["اليوم","التاريخ","النشـــــــــــــــــــــــــاط","المنظم","من","إلى","القاعة","التكرار",null,null,null,"بيان بعدد الأنشطة شهريًا"]
[{"$f":"IF(B4=\"\",\"\",TEXT(B4,\"dddd\"))","v":""},null,null,null,null,null,null,{"$f":"COUNTIFS(G:G,G4,F:F,F4,E:E,E4,B:B,B4)","v":0},null,null,null,"القاعة","عدد الأنشطة",null,null,"اجتماع"]
["",null,null,null,null,null,null,0,null,null,null,"الندوات",{"$f":"IFERROR(COUNTIF($G$4:G100,L5),\"\")","v":0}]
["",null,null,null,null,null,null,0,null,null,null,"مقرري اللجان",{"$f":"IFERROR(COUNTIF($G$4:G101,L6),\"\")","v":0}]
["",null,null,null,null,null,null,0,null,null,null,"الآداب",{"$f":"IFERROR(COUNTIF($G$4:G102,L7),\"\")","v":0}]
["",null,null,null,null,null,null,0,null,null,null,"العلوم الاجتماعية",{"$f":"IFERROR(COUNTIF($G$4:G103,L8),\"\")","v":0}]
["",null,null,null,null,null,null,0,null,null,null,"القاعة العامة",{"$f":"IFERROR(COUNTIF($G$4:G104,L9),\"\")","v":0}]
["",null,null,null,null,null,null,0,null,null,null,"المؤتمرات",{"$f":"IFERROR(COUNTIF($G$4:G105,L10),\"\")","v":0}]
["",null,null,null,null,null,null,0,null,null,null,"المجلس",{"$f":"IFERROR(COUNTIF($G$4:G106,L11),\"\")","v":0}]
["",null,null,null,null,null,null,0,null,null,null,"الفنون",{"$f":"IFERROR(COUNTIF($G$4:G107,L12),\"\")","v":0}]
["",null,null,null,null,null,null,0,null,"10ص",null,"كل القاعات",{"$f":"IFERROR(COUNTIF($G$4:G108,L13),\"\")","v":0}]
["",null,null,null,null,null,null,0,null,"11ص",null,"إجمالى عدد الأنشطة",{"$f":"SUM(M5:M13)","v":0}]
["",null,null,null,null,null,null,0,null,"12م",null,"عدد الاجتماعات ",{"$f":"IFERROR(COUNTIF($C$4:C112,P6),\"\")","v":0}]
["",null,null,null,null,null,null,0,null,"1م"]
["",null,null,null,null,null,null,0,null,"2م"]
["",null,null,null,null,null,null,0,null,"3م"]
["",null,null,null,null,null,null,0,null,"4م"]
["",null,null,null,null,null,null,0,null,"5م"]
["",null,null,null,null,null,null,0,null,"6م"]
["",null,null,null,null,null,null,0,null,"7م"]
["",null,null,null,null,null,null,0,null,"8م"]
["",null,null,null,null,null,null,0,null,"9م"]
["",null,null,null,null,null,null,0]
["",null,null,null,null,null,null,0]
["",null,null,null,null,null,null,0]
["",null,null,null,null,null,null,0]
["",null,null,null,null,null,null,0]
["",null,null,null,null,null,null,0]
["",null,null,null,null,null,null,0]
["",null,null,null,null,null,null,0]
["",null,null,null,null,null,null,0]
["",null,null,null,null,null,null,0]
["",null,null,null,null,null,null,0]
["",null,null,null,null,null,null,0]
["",null,null,null,null,null,null,0]
["",null,null,null,null,null,null,0]
["",null,null,null,null,null,null,0,null,"الندوات"]
["",null,null,null,null,null,null,0,null,"مقرري اللجان"]
["",null,null,null,null,null,null,0,null,"الآداب"]
["",null,null,null,null,null,null,0,null,"العلوم الاجتماعية"]
["",null,null,null,null,null,null,0,null,"القاعة العامة"]
["",null,null,null,null,null,null,0,null,"المؤتمرات"]
["",null,null,null,null,null,null,0,null,"المجلس"]
["",null,null,null,null,null,null,0,null,"الفنون"]
["",null,null,null,null,null,null,0,null,"كل القاعات"]
["",null,null,null,null,null,null,0]
["",null,null,null,null,null,null,0]
["",null,null,null,null,null,null,0]
["",null,null,null,null,null,null,0]
["",null,null,null,null,null,null,0]
["",null,null,null,null,null,null,0]
["",null,null,null,null,null,null,0]
["",null,null,null,null,null,null,0]
["",null,null,null,null,null,null,0]
["",null,null,null,null,null,null,0]
["",null,null,null,null,null,null,0]
["",null,null,null,null,null,null,0]
["",null,null,null,null,null,null,0]
["",null,null,null,null,null,null,0]
["",null,null,null,null,null,null,0]
["",null,null,null,null,null,null,0]
["",null,null,null,null,null,null,0]
["",null,null,null,null,null,null,0]
["",null,null,null,null,null,null,0]
["",null,null,null,null,null,null,0]
[{"$f":"IF(B68=\"\",\"\",TEXT(B68,\"dddd\"))","v":""},null,null,null,null,null,null,{"$f":"COUNTIFS(G:G,G68,F:F,F68,E:E,E68,B:B,B68)","v":0}]
["",null,null,null,null,null,null,0]
["",null,null,null,null,null,null,0]
["",null,null,null,null,null,null,0]
["",null,null,null,null,null,null,0]
["",null,null,null,null,null,null,0]
["",null,null,null,null,null,null,0]
["",null,null,null,null,null,null,0]
["",null,null,null,null,null,null,0]
["",null,null,null,null,null,null,0]
["",null,null,null,null,null,null,0]
["",null,null,null,null,null,null,0]
["",null,null,null,null,null,null,0]
["",null,null,null,null,null,null,0]
["",null,null,null,null,null,null,0]
["",null,null,null,null,null,null,0]
["",null,null,null,null,null,null,0]
["",null,null,null,null,null,null,0]
["",null,null,null,null,null,null,0]
["",null,null,null,null,null,null,0]
["",null,null,null,null,null,null,0]
["",null,null,null,null,null,null,0]
["",null,null,null,null,null,null,0]
["",null,null,null,null,null,null,0]
["",null,null,null,null,null,null,0]
["",null,null,null,null,null,null,0]
["",null,null,null,null,null,null,0]
["",null,null,null,null,null,null,0]
["",null,null,null,null,null,null,0]
["",null,null,null,null,null,null,0]
["",null,null,null,null,null,null,0]
["",null,null,null,null,null,null,0]
["",null,null,null,null,null,null,0]

{"sheet":"ديسمبر","index":11,"n_rows":100,"n_cols":16,"rows_kept":100,"cut":false,"hidden":false,"merged":[[0,0,1,6],[2,11,2,12]]}
["أنشطة شهر ديسمبر 2021",null,null,null,null,null,null," "]
[]
["اليوم","التاريخ","النشـــــــــــــــــــــــــاط","المنظم","من","إلى","القاعة","التكرار",null,null,null,"بيان بعدد الأنشطة شهريًا"]
[{"$f":"IF(B4=\"\",\"\",TEXT(B4,\"dddd\"))","v":""},null,null,null,null,null,null,{"$f":"COUNTIFS(G:G,G4,F:F,F4,E:E,E4,B:B,B4)","v":0},null,null,null,"القاعة","عدد الأنشطة",null,null,"اجتماع"]
["",null,null,null,null,null,null,0,null,null,null,"الندوات",{"$f":"IFERROR(COUNTIF($G$4:G100,L5),\"\")","v":0}]
["",null,null,null,null,null,null,0,null,null,null,"مقرري اللجان",{"$f":"IFERROR(COUNTIF($G$4:G101,L6),\"\")","v":0}]
["",null,null,null,null,null,null,0,null,null,null,"الآداب",{"$f":"IFERROR(COUNTIF($G$4:G102,L7),\"\")","v":0}]
["",null,null,null,null,null,null,0,null,null,null,"العلوم الاجتماعية",{"$f":"IFERROR(COUNTIF($G$4:G103,L8),\"\")","v":0}]
["",null,null,null,null,null,null,0,null,null,null,"القاعة العامة",{"$f":"IFERROR(COUNTIF($G$4:G104,L9),\"\")","v":0}]
["",null,null,null,null,null,null,0,null,null,null,"المؤتمرات",{"$f":"IFERROR(COUNTIF($G$4:G105,L10),\"\")","v":0}]
["",null,null,null,null,null,null,0,null,null,null,"المجلس",{"$f":"IFERROR(COUNTIF($G$4:G106,L11),\"\")","v":0}]
["",null,null,null,null,null,null,0,null,null,null,"الفنون",{"$f":"IFERROR(COUNTIF($G$4:G107,L12),\"\")","v":0}]
["",null,null,null,null,null,null,0,null,"10ص",null,"كل القاعات",{"$f":"IFERROR(COUNTIF($G$4:G108,L13),\"\")","v":0}]
["",null,null,null,null,null,null,0,null,"11ص",null,"إجمالى عدد الأنشطة",{"$f":"SUM(M5:M13)","v":0}]
["",null,null,null,null,null,null,0,null,"12م",null,"عدد الاجتماعات ",{"$f":"IFERROR(COUNTIF($C$4:C112,P6),\"\")","v":0}]
["",null,null,null,null,null,null,0,null,"1م"]
["",null,null,null,null,null,null,0,null,"2م"]
["",null,null,null,null,null,null,0,null,"3م"]
["",null,null,null,null,null,null,0,null,"4م"]
["",null,null,null,null,null,null,0,null,"5م"]
["",null,null,null,null,null,null,0,null,"6م"]
["",null,null,null,null,null,null,0,null,"7م"]
["",null,null,null,null,null,null,0,null,"8م"]
["",null,null,null,null,null,null,0,null,"9م"]
["",null,null,null,null,null,null,0]
["",null,null,null,null,null,null,0]
["",null,null,null,null,null,null,0]
["",null,null,null,null,null,null,0]
["",null,null,null,null,null,null,0]
["",null,null,null,null,null,null,0]
["",null,null,null,null,null,null,0]
["",null,null,null,null,null,null,0]
["",null,null,null,null,null,null,0]
["",null,null,null,null,null,null,0]
["",null,null,null,null,null,null,0]
["",null,null,null,null,null,null,0]
["",null,null,null,null,null,null,0]
["",null,null,null,null,null,null,0]
["",null,null,null,null,null,null,0,null,"الندوات"]
["",null,null,null,null,null,null,0,null,"مقرري اللجان"]
["",null,null,null,null,null,null,0,null,"الآداب"]
["",null,null,null,null,null,null,0,null,"العلوم الاجتماعية"]
["",null,null,null,null,null,null,0,null,"القاعة العامة"]
["",null,null,null,null,null,null,0,null,"المؤتمرات"]
["",null,null,null,null,null,null,0,null,"المجلس"]
["",null,null,null,null,null,null,0,null,"الفنون"]
["",null,null,null,null,null,null,0,null,"كل القاعات"]
["",null,null,null,null,null,null,0]
["",null,null,null,null,null,null,0]
["",null,null,null,null,null,null,0]
["",null,null,null,null,null,null,0]
["",null,null,null,null,null,null,0]
["",null,null,null,null,null,null,0]
["",null,null,null,null,null,null,0]
["",null,null,null,null,null,null,0]
["",null,null,null,null,null,null,0]
["",null,null,null,null,null,null,0]
["",null,null,null,null,null,null,0]
["",null,null,null,null,null,null,0]
["",null,null,null,null,null,null,0]
["",null,null,null,null,null,null,0]
["",null,null,null,null,null,null,0]
["",null,null,null,null,null,null,0]
["",null,null,null,null,null,null,0]
["",null,null,null,null,null,null,0]
["",null,null,null,null,null,null,0]
["",null,null,null,null,null,null,0]
[{"$f":"IF(B68=\"\",\"\",TEXT(B68,\"dddd\"))","v":""},null,null,null,null,null,null,{"$f":"COUNTIFS(G:G,G68,F:F,F68,E:E,E68,B:B,B68)","v":0}]
["",null,null,null,null,null,null,0]
["",null,null,null,null,null,null,0]
["",null,null,null,null,null,null,0]
["",null,null,null,null,null,null,0]
["",null,null,null,null,null,null,0]
["",null,null,null,null,null,null,0]
["",null,null,null,null,null,null,0]
["",null,null,null,null,null,null,0]
["",null,null,null,null,null,null,0]
["",null,null,null,null,null,null,0]
["",null,null,null,null,null,null,0]
["",null,null,null,null,null,null,0]
["",null,null,null,null,null,null,0]
["",null,null,null,null,null,null,0]
["",null,null,null,null,null,null,0]
["",null,null,null,null,null,null,0]
["",null,null,null,null,null,null,0]
["",null,null,null,null,null,null,0]
["",null,null,null,null,null,null,0]
["",null,null,null,null,null,null,0]
["",null,null,null,null,null,null,0]
["",null,null,null,null,null,null,0]
["",null,null,null,null,null,null,0]
["",null,null,null,null,null,null,0]
["",null,null,null,null,null,null,0]
["",null,null,null,null,null,null,0]
["",null,null,null,null,null,null,0]
["",null,null,null,null,null,null,0]
["",null,null,null,null,null,null,0]
["",null,null,null,null,null,null,0]
["",null,null,null,null,null,null,0]
["",null,null,null,null,null,null,0]